Cogmind - Beta 14 @@@ ROGUE MODE // 2025.04.24 @ 14:08:31 Player: Glogmind Result: Destroyed by LM-Q1P(R) with Subdweller Laser Performance ------------- Evolutions (0) 0 Regions Visited (3) 600 Robots Destroyed (33) 165 Value Destroyed (971) 971 Prototype IDs (0) 0 Alien Tech Used (0) 0 Bonus (0) 0 TOTAL SCORE: 1736 Bonus ------- None Cogmind --------- Core Integrity 0/250 Matter 121/300 Energy 200/200 System Corruption 7% Temperature Cool (6) Movement Rolling (110) Location -10/Subcaves Parts ------- > --- POWER (1) -------- Subdweller Power Source > --- PROPULSION (2) --- Subdweller Monowheel > --- UTILITY (2) ------ (None) > --- WEAPON (2) ------- Barrage Gun Subdweller Shrapnel Launcher > --- INVENTORY (5) ---- Battle Rifle Subdweller Machine Gun Enhanced Flamer Peak State ------------ > --- POWER ------------ Subdweller Power Source > --- PROPULSION ------- Light Treads Spiked Treads > --- UTILITY ---------- Disposable Heat Sink Targeting Computer > --- WEAPON ----------- Subdweller Machine Gun Heavy Battle Rifle > --- INVENTORY -------- Heavy Riot Gun Battle Rifle Barrage Gun Subdweller Shrapnel Launcher Enhanced Flamer [Rating: 15] Favorites ----------- Power Ion Engine Engine Ion Engine Power Core Light Nuclear Core Propulsion Light Treads Treads Light Treads Wheel Subdweller Monowheel Utility Targeting Computer Device Disposable Heat Sink Storage Large Storage Unit Processor Targeting Computer Protection Scrap Shield Weapon Subdweller Machine Gun Energy Cannon Subdweller Beam Cannon Ballistic Gun Subdweller Machine Gun Ballistic Cannon Light Cannon Launcher Subdweller Shrapnel Launcher Build | -11 -10 -10 -10 ------- Run | Yrd Mat Min Sub Slots Evolved . | . . . . Power . | . . . . Propulsion . | . . . . Utility . | . . . . Weapon . | . . . . Parts Attached 32 | 7 6 . 19 Power 4 | 1 1 . 2 Engine 3 | 1 . . 2 Core 1 | . 1 . . Reactor . | . . . . Propulsion 7 | 2 3 . 2 Treads 6 | 2 3 . 1 Leg . | . . . . Wheel 1 | . . . 1 Hover . | . . . . Flight . | . . . . Utility 7 | 2 1 . 4 Device 3 | 1 . . 2 Storage 2 | 1 1 . . Processor 1 | . . . 1 Hackware . | . . . . Protection 1 | . . . 1 Artifact . | . . . . Weapon 14 | 2 1 . 11 Energy Gun . | . . . . Energy Cannon 2 | . . . 2 Ballistic Gun 9 | 2 . . 7 Ballistic Cannon 1 | . 1 . . Launcher 2 | . . . 2 Special Weapon . | . . . . Impact Weapon . | . . . . Slashing Weapon . | . . . . Piercing Weapon . | . . . . Special Melee Weapon . | . . . . Unidentified Prototypes . | . . . . Parts Lost 11 | . 1 . 10 Power 1 | . . . 1 Propulsion 2 | . . . 2 Utility 5 | . 1 . 4 Weapon 3 | . . . 3 Highest Loss Streak 4 | . 1 . 4 To Critical Strikes . | . . . . Average Slot Usage (%) 91 | . 92 85 91 Engine 8 | . 11 . 8 Core 5 | . 2 14 5 Treads 26 | . 28 28 26 Device 8 | . 7 . 9 Storage 3 | . 14 14 . Processor 5 | . . . 7 Protection 2 | . . . 3 Energy Cannon 6 | . . . 8 Ballistic Gun 19 | . 25 14 18 Ballistic Cannon 2 | . 2 14 1 Peak Build Rating 15 | 7 9 8 15 Average Rating 10 | 5 7 8 11 On Entrance 5 | . 7 8 8 Naked Turns . | . . . . Heaviest Build 31 | 15 30 30 31 Greatest Support 40 | 40 40 40 40 Greatest Overweight (x) 4 | . . . 4 Average Overweight (x) . | . . . . Largest Inventory Capacity 15 | 8 15 15 15 Average Capacity 6 | 6 12 15 5 Most Carried 12 | 2 12 9 9 Average Carried 5 | 1 6 9 4 Final Capacity 15 | 8 15 15 5 Final Carried 9 | 2 9 9 3 Class Distribution -------------------- 77% | Mutant 18% | Scavenger-Mutant 4% | Subdweller-Mutant Dominant Class ---------------- Mutant | -10/Materials Mutant | -10/Mines Mutant | -10/Subcaves Resources | -11 -10 -10 -10 ----------- Run | Yrd Mat Min Sub Matter Collected 984 | 274 298 . 412 Remotely . | . . . . Salvage Created 1150 | 47 532 . 571 Parts 84 | 6 38 . 40 Haulers Intercepted 1 | . 1 . . Recyclers Shooed . | . . . . Parts Field Recycled . | . . . . Retrieved Matter . | . . . . Parts Self-Destructed 10 | . . . 10 Prevented . | . . . . Kills | -11 -10 -10 -10 ------- Run | Yrd Mat Min Sub Combat Hostiles Destroyed 27 | . 12 . 15 Guns 19 | . 12 . 7 Cannons 7 | . . . 7 AOE 1 | . . . 1 Classes Destroyed 8 | 1 4 . 3 Tunneler 2 | 2 . . . Hauler 1 | . 1 . . Watcher 3 | . 3 . . Swarmer 5 | . 3 . 2 Grunt 9 | . 9 . . Sentry 1 | . . . 1 Artisan 1 | . . . 1 Subdweller 12 | . . . 12 Best Kill Streak 3 | 2 3 . 2 Combat Bots Only 3 | . 3 . 2 Max Kills in Single Turn 1 | 1 1 . 1 Gunslinging . | . . . . Exploded 1 | . . . 1 Melee . | . . . . Uniques/NPCs Destroyed . | . . . . Combat | -11 -10 -10 -10 -------- Run | Yrd Mat Min Sub Hostile Shots Fired 116 | . 44 . 72 Missed 30 | . 9 . 21 Damage Taken 1842 | . 403 . 1439 Core 266 | . 104 . 162 Absorbed by Shields . | . . . . Core Remaining (%) 100 | 100 . . . Volleys Fired 129 | 3 44 . 82 Largest 2 | 2 2 . 2 Hottest 110 | 40 55 . 110 Shots Fired 243 | 6 88 . 149 Gun 206 | 6 86 . 114 Cannon 30 | . 2 . 28 Launcher 7 | . . . 7 Special . | . . . . Kinetic 215 | 6 88 . 121 Thermal 28 | . . . 28 Explosive . | . . . . Electromagnetic . | . . . . Robot Hit Streak 25 | 2 17 . 25 Robot Miss Streak 4 | 1 2 . 4 Penetration Max . | . . . . Secondary Targets 1 | . . . 1 Max Gunslinging Chain 1 | . . . 1 Shots Hit Robots 161 | 3 69 . 89 Core Hits 53 | 2 26 . 25 Critical Kills 3 | . 1 . 2 Critical Parts Destroyed 1 | . 1 . . Critical Strikes 5 | . 2 . 3 Destroy 5 | . 2 . 3 Melee Attacks . | . . . . Impact . | . . . . Slashing . | . . . . Piercing . | . . . . Sneak Attacks . | . . . . Combat Hostiles . | . . . . Follow-up Attacks . | . . . . Damage Inflicted 3159 | 36 908 . 2215 Guns 2244 | 36 875 . 1333 Cannons 435 | . 17 . 418 Explosions 464 | . . . 464 Melee . | . . . . Ramming 16 | . 16 . . Kinetic 2725 | 36 892 . 1797 Thermal 418 | . . . 418 Explosive . | . . . . Electromagnetic . | . . . . Impact . | . . . . Slashing . | . . . . Piercing . | . . . . Highest Corruption 7 | . . . 7 Average Corruption 7 | . . . 7 Corruption Purged . | . . . . Corruption Blocked . | . . . . Effects 6 | . . . 6 Message Errors 1 | . . . 1 Matter Fused 2 | . . . 2 Heat Flow Errors 1 | . . . 1 Energy Discharges 2 | . . . 2 Overload Shots . | . . . . Overflow Damage 20 | . . . 20 Projectiles 11 | . . . 11 Explosions 9 | . . . 9 Melee . | . . . . Knockbacks . | . . . . Impact . | . . . . Kinetic . | . . . . Secondary . | . . . . Self-Inflicted Damage 91 | . . . 91 Shots 2 | . . . 2 Rammed 3 | . 3 . . Targets Rammed 3 | . 3 . . Kicked . | . . . . Crushed . | . . . . Highest Temperature 100 | . 5 . 100 Average Temperature 13 | . 2 . 31 Received Heat Transfer 360 | . 192 . 168 Siege Activations . | . . . . Robots Corrupted . | . . . . Combat Hostiles . | . . . . Parts Fried . | . . . . Impact Corruptions . | . . . . Robots Melted . | . . . . Combat Hostiles . | . . . . Parts Melted . | . . . . Heat Transferred 555 | . . . 555 Parts Sabotaged . | . . . . Parts Stolen . | . . . . Parts Stripped . | . . . . Power Chain Reactions . | . . . . Alert | -11 -10 -10 -10 ------- Run | Yrd Mat Min Sub Peak Influence 256 | 10 256 43 . Initial 43 | . 6 43 . Average 91 | 3 118 43 . Maximum Alert Level 1 | . 1 . . Low Security (%) 92 | 100 88 100 . Level 1 7 | . 11 . . Level 2 . | . . . . Level 3 . | . . . . Level 4 . | . . . . Level 5 . | . . . . High Security . | . . . . Max Security . | . . . . Squads Dispatched 4 | . 4 . . Investigation 2 | . 2 . . Extermination . | . . . . Reinforcement 2 | . 2 . . Assault . | . . . . Garrison . | . . . . Intercept . | . . . . Searches Triggered . | . . . . Construction Impeded . | . . . . Haulers Reinforced . | . . . . Active Scanning Responses . | . . . . Cargo Convoy Interrupts . | . . . . Stealth | -11 -10 -10 -10 --------- Run | Yrd Mat Min Sub Distress Signals . | . . . . Communications Jammed . | . . . . Distress Signals . | . . . . Times Spotted 39 | . 20 . 19 Peak Tracking Total 4 | . 4 . 3 Tactical Retreats 5 | . 3 . 2 Traps | -11 -10 -10 -10 ------- Run | Yrd Mat Min Sub Traps Triggered 3 | . 1 . 2 Indirectly . | . . . . Trap Hack Attempts . | . . . . Triggered . | . . . . Disarmed . | . . . . Reprogrammed . | . . . . Reused . | . . . . Traps Extracted . | . . . . Installed . | . . . . Triggered . | . . . . Machines | -11 -10 -10 -10 ---------- Run | Yrd Mat Min Sub Machines Disabled . | . . . . Max in Single Turn . | . . . . Machines Repaired . | . . . . Machines Dismantled . | . . . . Machines Sabotaged . | . . . . Overloaded Fab Kills . | . . . . Hacking | -11 -10 -10 -10 --------- Run | Yrd Mat Min Sub Machines Accessed 6 | . 5 . 1 Terminals 5 | . 5 . . Fabricators . | . . . . Repair Stations . | . . . . Recycling Units . | . . . . Scanalyzers . | . . . . Garrison Access . | . . . . Total Hacks 15 | . 10 . 5 Successful 7 | . 2 . 5 Failed 7 | . 7 . . Catastrophic 2 | . 2 . . Database Lockouts 1 | . 1 . . Manual 11 | . 11 . . Terminals 10 | . 10 . . Fabricators . | . . . . Repair Stations . | . . . . Recycling Units . | . . . . Scanalyzers . | . . . . Garrison Access . | . . . . Terminal Hacks 6 | . 1 . 5 Record 5 | . . . 5 Robot Analysis 1 | . 1 . . Fabricator Hacks . | . . . . Repair Station Hacks . | . . . . Recycling Unit Hacks . | . . . . Scanalyzer . | . . . . Garrison Access Hacks . | . . . . Unauthorized Hacks 1 | . 1 . . Terminals 1 | . 1 . . Assimilate 1 | . 1 . . Fabricators . | . . . . Repair Stations . | . . . . Recycling Units . | . . . . Scanalyzers . | . . . . Garrison Access . | . . . . Data Cores Recovered . | . . . . Used . | . . . . Hacking Detections 4 | . 4 . . Full Trace Events 1 | . 1 . . Feedback Events . | . . . . Feedback Blocked . | . . . . Robot Schematics Acquired . | . . . . Robots Built . | . . . . Authchips . | . . . . Time . | . . . . Total Robot Build Rating . | . . . . Part Schematics Acquired . | . . . . Parts Built . | . . . . Authchips . | . . . . Time . | . . . . Total Part Build Rating . | . . . . Parts Repaired . | . . . . Time . | . . . . Parts Recycled . | . . . . Recycled Matter . | . . . . Retrieved Matter . | . . . . Retrieved Components . | . . . . Parts Scanalyzed . | . . . . Part Schematics Acquired . | . . . . Parts Damaged . | . . . . Bothacking | -11 -10 -10 -10 ------------ Run | Yrd Mat Min Sub Used RIF Installer . | . . . . Robots Hacked . | . . . . Non-combat . | . . . . Combat . | . . . . Robot Hacks Applied . | . . . . Relay Couplers Released . | . . . . Fabnet Peak Effective % . | . . . . Robots Rewired . | . . . . Allies Hacked . | . . . . Hacks Repelled . | . . . . Allies | -11 -10 -10 -10 -------- Run | Yrd Mat Min Sub Total Allies . | . . . . Largest Group . | . . . . Highest-Rated Group . | . . . . Highest-Rated Ally . | . . . . Total Orders . | . . . . Ally Attacks . | . . . . Total Damage . | . . . . Kills . | . . . . Allies Corrupted . | . . . . Allies Melted . | . . . . Intel | -11 -10 -10 -10 ------- Run | Yrd Mat Min Sub Robot Analysis Total 1 | . 1 . . Derelict Logs Recovered 3 | . . . 3 Drone Launches . | . . . . Drone Recoveries . | . . . . Exploration | -11 -10 -10 -10 ------------- Run | Yrd Mat Min Sub Turns Passed 5004 | 115 898 296 3695 Spaces Moved 2592 | 63 435 8 2086 Core 16 | 7 . . 9 Treads 2454 | 56 435 8 1955 Legs . | . . . . Wheels 122 | . . . 122 Hover . | . . . . Flight . | . . . . Fastest Speed 50 | 50 160 160 110 Average Speed 157 | 147 160 160 157 Slowest Speed 250 | 160 160 160 250 Overloaded Moves . | . . . . Propulsion Burnouts . | . . . . Robots Hopped . | . . . . Cave-ins Triggered 1 | . . . 1 Exploration Rate (%) 43 | 5 75 9 83 Regions Visited 3 Branch Regions 2 Pre-discovered Areas 1 | . . . 1 Known Exits Taken . | . . . . Unknown Exits Taken 3 | 1 1 1 . Scrap Searched 12 | . . . 12 Spaces Dug . | . . . . Terrain Destroyed 68 | . . . 68 Melee . | . . . . Projectile 4 | . . . 4 AOE 64 | . . . 64 Terrain Rammed . | . . . . Walls Destroyed . | . . . . Machines Disabled . | . . . . Actions | -11 -10 -10 -10 --------- Run | Yrd Mat Min Sub Total 3268 | 76 547 291 2354 Wait 460 | 2 46 284 128 Move 2589 | 62 434 7 2086 Hop . | . . . . Pick Up 24 | 2 9 . 13 Fast Attach 13 | 7 1 . 5 Attach 8 | . . . 8 Detach 1 | . . . 1 Swap 11 | . 5 . 6 Drop 25 | . 5 . 20 Fire 129 | 3 44 . 82 Melee . | . . . . Ram . | . . . . Kick . | . . . . Crush 3 | . 3 . . Escape Stasis . | . . . . Rewire 3 | . . . 3 Trap . | . . . . Miscellaneous 2 | . . . 2 Route ------- -11/Scrapyard -10/Materials (discovered 3 exits: [*Mat x2] / [*Min]) -10/Mines -10/Subcaves (discovered 2 exits: [*Mat x2]) History --------- Turn | Location | Event 2 | -11/Scrapyard | Discovered new exit (range 16) 116 | -11/Scrapyard | Entered Materials 307 | -10/Materials | Build established: Mutant 370 | -10/Materials | Discovered new exit (range 11) 640 | -10/Materials | Central database locked down 929 | -10/Materials | Discovered new exit (range 16) 990 | -10/Materials | Discovered new exit (range 16) 1014 | -10/Materials | Entered Mines 1302 | -10/Mines | Discovered new exit (range 6) 1310 | -10/Mines | Entered Subcaves 1465 | -10/Subcaves | Discovered new exit (range 11) 1559 | -10/Subcaves | A swath of the cavern ceiling suddenly collapsed 1599 | -10/Subcaves | Visited Clippyterm 1604 | -10/Subcaves | Learned Research security intel 1604 | -10/Subcaves | Learned 40 Factory zone layouts 1934 | -10/Subcaves | Shifting Twisted Machinery released Flamer 1940 | -10/Subcaves | Discovered new exit (range 4) 2245 | -10/Subcaves | Core integrity fell below 50% 2653 | -10/Subcaves | Build established: Scavenger-Mutant 3572 | -10/Subcaves | Build established: Mutant 3712 | -10/Subcaves | Learned location of Zion (-7) 3960 | -10/Subcaves | Learned Materials machine intel 3963 | -10/Subcaves | Learned 2 Materials zone layouts 4237 | -10/Subcaves | Shifting Twisted Machinery released Sub. Monowheel 4240 | -10/Subcaves | Shifting Twisted Machinery released Barrage Gun 4294 | -10/Subcaves | Ambushed by angry Subdweller bent on revenge 4622 | -10/Subcaves | Shifting Twisted Machinery released Battle Rifle 4754 | -10/Subcaves | Shifting Twisted Machinery released Sub. Power Source 4819 | -10/Subcaves | Core integrity fell below 20% 4820 | -10/Subcaves | Crushed by falling debris 4851 | -10/Subcaves | Lost 4 parts (2n2u) 4967 | -10/Subcaves | A swath of the cavern ceiling suddenly collapsed 4977 | -10/Subcaves | Ambushed by Subdwellers from Twisted Machinery 4988 | -10/Subcaves | Ambushed by Subdweller buried in earth 5005 | -10/Subcaves | Destroyed by LM-Q1P(R) with Subdweller Laser Last Messages --------------- Dropped Hvy. Riot Gun. Acquired Sub. Shrapnel Launcher. Acquired 13 matter. System corrupted: Energy discharge (-60). R&&5Y/MFRWX System corrupted: Energy discharge (-68). A swath of the cavern ceiling suddenly collapses. System corrupted: Matter fused (-6). LM-Q1P(R) emerges from the Twisted Machinery. Sub. Shrapnel Launcher destroyed. Destroyed Sub. Shrapnel Launcher. NB-8CK(R): "NOSTUCKSUB!" Hvy. Battle Rifle destroyed. System corrupted: Matter fused (-9). NB-8CK(R) suffers critical hit (Destroy). NB-8CK(R) destroyed. NC-P8O(R) destroyed. Sub. Shrapnel Launcher shoots sparks and powers down. Map ----- +----------------------------------------------------+ | ?????????????????????????????????????????????????? | | ?????????????????????????????????????????????????? | | ?????????????????????????????????????????????????? | | ?????????????????????????????????????????????????? | | ?????????????????????????????????????????????????? | | ?????????????????????????????????????????????????? | | ?????????????????????????????????????????????????? | | ?????????????????????????????????????????????????? | | ?????????????????"???????????????????????????????? | | ?????????????????"???????????????????????????????? | | ????????????????? ???????????????????????????????? | | ?????????????????" ??????????????????????????????? | | ?????????????????? ?????????????????????????????? | | ???????????????? ;????????????????????????????? | | ?????????????? #???????????????????????????? | | ?????????????? ###????????????????????????? | | ?????????????;; ????????????????????????? | | ??????????????;; ????????????????????????? | | ???????????????# ###?????????????????????? | | ???????????????# ;#?????????????????????? | | ???????????????# / R #??????####???????????? | | ???????????????# ????### ####????????? | | ???????????????# ##???# ##???????? | | ???????????????# &* #????# #???????? | | ???????????????# = & #???## #???????? | | ???????????????# ! @ ##### #?????### | | ?????????? # ; ## ### ##???## | | ????????????????????###;# ### #?# #??## | | ??????????????????????##; " #?# ##?## | | ???????????????????????#;; ; ##?# %#?## %% | | ??????????????????????# ; ## ##??# ### ## | | ??????????????????????# #######???## ### | | ??????????????????????### #???????##### ####?# | | ????????????????????????## ??????## ## ##???## | | ?????????????????????????# ??????# #????# | | ?????????????????????????# ??????# %##??## | | ?????????????????????????? ??????## #?## | | ?????????????????????????? ??????# ### | | ?????????????????????????? ??????# ## | | ?????????????????????????? ??????## ### | | ?????????????????????????? ???##### ### | | ??????????????????????????? ???# ### | | ??????????????????????????? ????# ##?### | | ????????????????????????????????# #####????# | | ????????????????????????????????# ###????????# | | ????????????????????????????????# ##??????????# | | ????????????????????????????????# ##???????????# | | ????????????????????????????????#####????????????# | | ?????????????????????????????????????????????????? | | ?????????????????????????????????????????????????? | +----------------------------------------------------+ Best States ------------- Heat Dissipation 35 Coolant Potential 50 Energy Generation 15 Energy Capacity 250 Matter Stores 300 Matter Capacity 300 Sight Range 16 Terrain Scan Density 10 Armor Coverage 800 Evasion (%) 40 Targeting Accuracy 5 Recoil Reduction 2 Item Schematics ----------------- None Robot Schematics ------------------ None Fabricated ------------ Nothing Alien Tech Used ----------------- None Achievements -------------- None Challenges ------------ None Game ------ Seed FissionTitaniumKatana Manual? 0 Play Time 00:29:59 Cumulative 56.1 hours Start 2025.04.24 @ 13:39:46 End 2025.04.24 @ 14:08:31 Sessions 1 Manual Loads 0 Difficulty Rogue Special Mode None Game No. 96 Rogue 96 Adventurer 0 Explorer 0 Win Type - Total 1 Types 1/0/0/0/0/0/0/0/0 Lore% 16 Gallery% 41 Achievement% 37 Wizard Run 0 Options --------- Layout 1 ASCII 0 Keyboard 0 Movement Mouse Keybinds 0 Fullscreen 1 Font 24/Smallcaps Map View 50x40 Zoom Use 0% Tactical HUD 0 Map Filters NONE Filters NONE Steam 0 RUN: 778d91f7-8105-49a3-9c8e-9b6bbe96499c